{"text_format":"3","workbook":"xlsx","n_sheets":13,"sheets":["Aloitus","Perusasiat","Funktioiden esittely","KESKIARVO","MIN & MAKS","Päivämäärä ja kellonaika","Tekstin ja lukujen yhdistäminen","JOS-lausekkeet","PHAKU","Ehdolliset funktiot","Ohjattu funktiotoiminto","Kaavojen virheet","Lisätiedot"],"not_rendered":{"images":32,"defined_names":21},"read":"whole","date_system":"1900"}

{"sheet":"Aloitus","index":0,"n_rows":4,"n_cols":1,"rows_kept":4}
[]
["Kaavojen käytön aloittaminen"]
["Näiden helppojen ohjeiden avulla voit pääset alkuun Excelin (maailman tehokkaimman taulukkolaskentaohjelman) kaavojen ja funktioiden käytössä."]
["Voit palata alkuun painamalla Ctrl + HOME. Voit aloittaa esittelyn painamalla Ctrl + PAGE DOWN."]

{"sheet":"Perusasiat","index":1,"n_rows":43,"n_cols":10,"rows_kept":43}
["Perusteet: laskutoimitukset Excelissä"]
["Voit tehdä Excelissä laskuja yhteen, vähentää, kertoa ja jakaa ilman mitään funktioita. Tarvitset vain perusoperaattoreita: +, -, *, /. Kaikki kaavat alkavat yhtäläisyysmerkillä (=).\n",null,"Käytettävät luvut:",null,"Laskutoimitus:","Kaavat:","Vastaukset:"]
["Jos haluat laskea yhteen, valitse solu F3, kirjoita =C3+C4 ja paina sitten Enteriä. \n",null,1,null,"yhteenlasku (+) ",null,{"$f":"C3+C4","v":3}]
["Jos haluat vähentää, valitse solu F4, kirjoita =C3-C4 ja paina sitten Enteriä. ",null,2,null,"vähennyslasku (-) ",null,{"$f":"C3-C4","v":-1}]
["Jos haluat kertoa, valitse solu F5, kirjoita =C3*C4 ja paina sitten Enteriä.\n",{"$nulls":3},"kertolasku (*) ",null,{"$f":"C3*C4","v":2}]
["Jos haluat jakaa, valitse solu F6, kirjoita =C3/C4 ja paina sitten Enteriä.\n",{"$nulls":3},"jakolasku (/) ",null,{"$f":"C3/C4","v":0.5}]
["Tiesitkö tämän? Kun vaihdat solujen C3 ja C4 lukuja tässä, kaavan tulokset muuttuvat automaattisesti.",{"$nulls":3},"potenssilasku (^) ",null,{"$f":"C3^C4","v":1}]
["LISÄOPPIA: Voit korottaa arvoa potenssiin sirkumfleksimerkillä (^), esimerkiksi =A1^A2. Voit kirjoittaa tämän merkin painamalla Vaihto+6. Kirjoita soluun F7 =C3^C4."]
["Saat lisätietoja alla"]
["Seuraava vaihe"]
["Lisätietoja kaavoista, soluista ja alueista"]
["Excel koostuu yksittäisistä soluista, jotka on ryhmitelty riveille ja sarakkeisiin. Rivit on merkitty numeroilla ja sarakkeet kirjaimilla. Rivejä on yli miljoona ja sarakkeita yli 16 000. Voit lisätä niihin kaikkiin kaavoja ja funktioita. \n"]
["Kaavat voivat sisältää soluviittauksia, soluviittausalueita, operaattoreita ja vakioita. Alla on esimerkkejä kaavoista:\n\n=A1+B1\n=10+20\n=SUMMA(A1:A10)\n\n"]
["Yllä käytimme kolmannessa esimerkissä SUMMA-funktiota. Funktio on valmiiksi määritetty komento, joka laskee arvon tai arvot tietyllä tavalla ja palauttaa tuloksen. SUMMA-funktio esimerkiksi ottaa määrittämäsi soluviittaukset tai -alueet ja laskee ne yhteen. Tässä esimerkissä se laskee yhteen solut A1–A10. Excelissä on yli 400 funktiota, joihin voit tutustua Kaavat-välilehdessä.\n"]
["Funktioita sisältävät kaavat alkavat yhtäläisyysmerkillä, jonka perässä on funktion nimi ja sen argumentit (arvot, joilla funktio laskee) sulkeisiin suljettuna. \n"]
["Voit vahvistaa kaavan painamalla Enteriä. Kun painat Enteriä, Excel laskee kaavan ja näyttää sen tuloksen solussa. Jos haluat nähdä itse kaavan, voit tarkistaa sen valintanauhan alla olevalta kaavariviltä tai voit siirtyä muokkaustilaan painamalla F2-näppäintä, jolloin näet kaavan solussa. Kun haluat viimeistellä kaavan ja laskea tuloksen, paina Enteriä uudelleen.\n\n"]
["Joidenkin kaavojen selityksiä"]
["=10+20 on kaava, jossa 10 ja 20 ovat vakioita ja +-merkki on operaattori."]
["=SUMMA(A1:A10) on kaava, jossa SUMMA on funktion nimi, jossa kaavan argumentit ovat sulkeissa ja jossa A1:A10 on funktion solualue."]
[" =SUMMA(A1:A10;C1:C10) on kaava, jossa SUMMA on funktion nimi, jossa kaavan argumentit ovat sulkeissa ja jossa A1:A10;C1:C10 ovat funktion solualueet pilkulla erotettuna."]
["HYÖDYLLISIÄ TIETOJA: Vakiot ovat arvoja, jotka annat itse soluihin tai kaavoihin. Vaikka =10+20 saattaa antaa saman tuloksen kuin =A1+B1, vakioiden lisääminen kaavoihin ei ole suositeltu tapa. Miksi? Tämä johtuu siitä, että et näe vakiota helposti valitsematta solua ja tarkistamatta vakiota siitä. Tämän johdosta muokkaaminen voi olla vaikeaa myöhemmin. On paljon helpompi lisätä vakiot soluihin, joissa voit muokata niitä helposti. Tällä tavalla voit myös viitata niihin kaavoissasi.\n\nEsimerkki: Valitse alta keltainen solu, jonka arvo on 12. Näet, että olemme käyttäneet SUMMA-funktiota solualueella. Emme kirjoittaneet suoraan kaavaan arvoja 4 ja 8. \n"]
["Edellinen"]
["Seuraava"]
["Lisää tietoja verkossa"]
["Excelin käyttö laskimena"]
["Excelin kaavojen yleiskatsaus"]
["Excelin funktiot (luokittain) "]
["Excelin funktiot (aakkosjärjestyksessä) "]
["Maksuton Excel-koulutus verkossa"]
{"$rows_empty":10}
[{"$nulls":9},"Arvot"]
[{"$nulls":9},4]
[{"$nulls":9},8]
[{"$nulls":9},{"$f":"SUM(J41:J42)","v":12}]

{"sheet":"Funktioiden esittely","index":2,"n_rows":51,"n_cols":7,"rows_kept":51}
["Funktioiden esittely"]
["Funktioiden avulla voit tehdä monia asioita, esimerkiksi suorittaa matemaattisia laskutoimituksia, etsiä arvoja ja jopa laskea päivämääriä sekä kellonaikoja. Kokeillaan nyt muutamaa tapaa laskea arvoja yhteen SUMMA-funktiolla.",null,"Hedelmät","Määrä",null,"Liha","Määrä"]
["Kirjoita hedelmien Määrä-sarakkeeseen (solu D7) =SUMMA(D3:D6) tai kirjoita =SUMMA(, valitse alue hiirellä ja paina Enteriä. Tämä laskee yhteen arvot soluista D3, D4, D5 ja D6. Tuloksen pitäisi olla 170.\n",null,"Omenat",50,null,"Naudanliha",50]
["Kokeillaan nyt Automaattinen summa. Valitse Liha-sarakkeen solu (G7) ja valitse sitten Kaavat > Automaattinen summa > SUMMA. Näet, että Excel lisää kaavan automaattisesti puolestasi. Vahvista se painamalla Enteriä. Automaattinen summa -toiminto sisältää kaikki yleisimmät funktiot.\n",null,"Appelsiinit",20,null,"Kana",30]
["Tässä on kätevä pikanäppäinkomento. Valitse solu D15, paina Alt = ja paina sitten Enteriä. Tämä lisää SUMMA-funktion automaattisesti.",null,"Banaanit",60,null,"Sianliha",10]
["Saat lisätietoja alla",null,"Sitruunat",40,null,"Kala",50]
["LISÄOPPIA\nKokeile LASKE-funktiota millä tahansa jo aiemmin kokeillulla tavalla. LASKE-funktio laskee solualueelta niiden solujen määrän, jotka sisältävät lukuja.",null,"SUMMA > ",{"$f":"SUM(D3:D6)","v":170},null,"SUMMA > "]
["Seuraava vaihe"]
["Lisätietoja funktioista",null,"Kohde","Määrä",null,"Kohde","Määrä"]
["Siirry Kaavat-välilehteen ja selaa funktiokirjastoa, jossa funktiot on lueteltu luokittain (esimerkiksi Teksti, Päivämäärä ja kellonaika jne.). Lisää funktio -toiminnolla voit etsiä funktioita nimen perusteella ja käynnistää ohjatun funktiotoiminnon, jolla voit luoda oman kaavan. \n\nKun aloitat funktion nimen kirjoittamisen annettuasi yhtäläisyysmerkin (=), Excel käynnistää IntelliSense-toiminnon, joka näyttää kaikki funktiot, jotka alkavat kirjoittamillasi kirjaimilla. Kun löydät haluamasi funktion, paina Sarkain-näppäintä: Excel täydentää funktion nimen automaattisesti ja lisää ensimmäisen sulkumerkin puolestasi. Se näyttää myös pakolliset ja vapaaehtoiset argumentit. \n\n\n\nTutustutaan nyt muutamien funktioiden rakenteeseen. SUMMA-funktio muotoillaan seuraavasti:",null,"Leivät",50,null,"Leivät",50]
["Jos SUMMA-funktio osaisi puhua, se sanoisi palauttavansa solujen D35–D38-summan ja koko sarakkeen H summan. SUMMA on funktion nimi, D35:D38 on ensimmäisen alueen argumentti, mikä on miltei aina pakollinen, ja H:H on toisen alueen argumentti (argumentit on eroteltu toisistaan pilkulla). Kokeillaan nyt funktiota, joka ei edellytä yhtään argumenttia.\n",null,"Donitsit",100,null,"Donitsit",100]
["TÄMÄ.PÄIVÄ-funktio palauttaa nykyisen päivämäärän. Arvo päivitetään automaattisesti, kun Excel laskee funktion uudelleen eri päivänä.",null,"Pikkuleivät",40,null,"Pikkuleivät",40]
["TIESITKÖ TÄMÄN?\nValitse nämä solut. Etsi sitten Excel-ikkunan oikean alakulman riviltä SUMMA: 170. Tätä riviä kutsutaan tilariviksi. Siitä näet nopeasti summan ja muita tietoja valitusta solusta tai alueesta. ",null,"Kakut",50,null,"Kakut",50]
["TÄRKEÄ YKSITYISKOHTA\nKaksoisnapsauta tätä solua. Huomaat loppupuolella arvon 100. Vaikka kaavoihin voi sisällyttää tällaisia lukuarvoja, emme suosittele sitä, ellei se ole ehdottoman välttämätöntä. Tätä kutsutaan vakioksi, ja on helppo unohtaa sen sisältyvän kaavaan. Suosittelemme mieluummin viittaamaan johonkin toiseen soluun, esimerkiksi soluun F51. Siellä luku on helposti nähtävissä, eikä se katoa kaavan sisään. ",null,"Piirakat",20,null,"Piirakat",20]
["Lisää tietoja verkossa",null,"SUMMA > ",null,null,"LASKE >"]
["Kaikki SUMMA-funktiosta"]
["Lukujen laskeminen yhteen Automaattinen summa -toiminnolla"]
["Kaikki LASKE-funktiosta"]
["Maksuton Excel-koulutus verkossa"]
["Takaisin alkuun"]
["Seuraava vaihe"]
{"$rows_empty":12}
[null,null,"Hedelmät","Määrä"]
[null,null,"Omenat",50]
[null,null,"Appelsiinit",20]
[null,null,"Banaanit",60]
[null,null,"Sitruunat",40]
[null,null,"SUMMA > ",{"$f":"SUM(D35:D38)","v":170}]
[]
[]
[]
[]
[null,null,"Kohde","Määrä"]
[null,null,"Autot",20]
[null,null,"Kuormurit",10]
[null,null,"Polkupyörät",10]
[null,null,"Luistimet",40]
[]
[{"$nulls":3},"Yhteensä:",null,"Lisäarvo:","Uusi kokonaismäärä"]
[{"$nulls":3},{"$f":"SUM(D45:D48,100)","v":180},null,100,{"$f":"SUM(D45:D48,F51)","v":180}]

{"sheet":"KESKIARVO","index":3,"n_rows":15,"n_cols":7,"rows_kept":15}
["KESKIARVO-funktio"]
["KESKIARVO-funktiolla voit laskea solualueen lukujen keskiarvon.",null,"Hedelmät","Määrä",null,"Liha","Määrä"]
["Valitse solu D7 ja lisää sitten KESKIARVO-funktio Automaattinen summa -toiminnolla.",null,"Omenat",50,null,"Naudanliha",50]
["Valitse nyt solu G7 ja lisää KESKIARVO-funktio kirjoittamalla itse =KESKIARVO(G3:G6). ",null,"Appelsiinit",20,null,"Kana",30]
["Solussa D15 voit joko käyttää Automaattinen summa -toimintoa tai kirjoittaa toisen KESKIARVO-funktion. ",null,"Banaanit",60,null,"Sianliha",10]
["TIESITKÖ TÄMÄN?\nKun valitset minkä tahansa lukualueen, näet sen keskiarvon heti tilariviltä.\n",null,"Sitruunat",40,null,"Kala",50]
["Siirry edelliseen laskentataulukkoon",null,"KESKIARVO >",null,null,"KESKIARVO >"]
["Siirry seuraavaan laskentataulukkoon"]
["LISÄOPPIA\nKokeile tässä MEDIAANI- tai MOODI-funktiota. \n\nMEDIAANI antaa sinulle joukon keskimmäisen arvon, kun taas \nMOODI antaa useimmin esiintyvän arvon.\n",null,"Kohde","Määrä",null,"Kohde","Määrä"]
["Linkit lisätietoihin verkossa",null,"Leivät",50,null,"Leivät",50]
["Jos haluat lukea lisätietoja KESKIARVO-funktiosta verkosta, valitse tämä",null,"Donitsit",100,null,"Donitsit",100]
["Jos haluat lukea lisätietoja MEDIAANI-funktiosta verkosta, valitse tämä",null,"Pikkuleivät",40,null,"Pikkuleivät",40]
["Jos haluat lukea lisätietoja MOODI-funktiosta verkosta, valitse tämä",null,"Kakut",50,null,"Kakut",50]
["Jos haluat lukea lisätietoja maksuttomasta Excel-koulutuksesta verkosta, valitse tämä",null,"Piirakat",20,null,"Piirakat",20]
[null,null,"KESKIARVO >"]

{"sheet":"MIN & MAKS","index":4,"n_rows":15,"n_cols":7,"rows_kept":15}
["MIN- ja MAKS-funktiot"]
["MIN-funktiolla voit hakea solualueen pienimmän arvon.",null,"Hedelmät","Määrä",null,"Liha","Määrä"]
["MAKS-funktiolla voit hakea solualueen suurimman arvon.",null,"Omenat",50,null,"Naudanliha",50]
["Valitse solu D7 ja lisää sitten MIN-funktio ohjatulla Automaattinen summa -toiminnolla.\n",null,"Appelsiinit",20,null,"Kana",30]
["Valitse nyt solu G7 ja lisää MAKS-funktio kirjoittamalla itse =MAKS(G3:G6).\n",null,"Banaanit",60,null,"Sianliha",10]
["Solussa D15 voit joko käyttää ohjattu Automaattinen summa -toimintoa tai kirjoittaa MIN- tai MAKS-funktion itse. \n",null,"Sitruunat",40,null,"Kala",50]
["Lisää tietoja verkossa\n",null,"MIN >",null,null,"MAKS >"]
["Kaikki MIN-funktiosta"]
["Kaikki MAKS-funktiosta",null,"Kohde","Määrä",null,"Kohde","Määrä"]
["Maksuton Excel-koulutus verkossa",null,"Leivät",50,null,"Leivät",50]
["HYÖDYLLISIÄ TIETOJA\nVoit käyttää MIN- ja MAKS-funktioita useiden alueiden tai arvojen kanssa, kun haluat näyttää arvoista pienemmän tai suuremman. Esimerkiksi =MIN(A1:A10;B1:B10) tai =MAKS(A1:A10;B1), jossa B1 sisältää raja-arvon, esimerkiksi arvon 10, jolloin kaava ei koskaan palauta 10:tä pienempää tulosta.\n",null,"Donitsit",100,null,"Donitsit",100]
[null,null,"Pikkuleivät",40,null,"Pikkuleivät",40]
[null,null,"Kakut",50,null,"Kakut",50]
[null,null,"Piirakat",20,null,"Piirakat",20]
[null,null,"MIN tai MAKS >",{"$nulls":3},{"$f":"MIN(G10:G14,10)","v":10}]

{"sheet":"Päivämäärä ja kellonaika","index":5,"n_rows":47,"n_cols":6,"rows_kept":47,"merged":[[4,2,4,3],[26,2,26,3],[30,2,30,3],[44,2,44,3]]}
["Päivämääräfunktiot"]
["Excel voi antaa sinulle nykyisen päivämäärän tietokoneesi alueasetusten mukaisesti. Voit myös suorittaa päivämäärille yhteen- ja vähennyslaskuja."]
["Tutustu TÄMÄ.PÄIVÄ-funktioon, joka palauttaa nykyisen päivämäärän. Nämä ovat käytössä olevia muuttuvia funktioita, joten kun avaat työkirjan uudelleen huomenna, näet huomisen päivämäärän. Kirjoita soluun D6 =TÄMÄ.PÄIVÄ(). \n"]
["Päivämäärien vähennyslaskut: Anna syntymäpäiväsi muodossa P\\.K\\.VV soluun D7 ja anna Excelin laskea, montako päivää siihen on. Voit tehdä tämän kirjoittamalla soluun D8 kaavan =D7-D6.\n"]
["Päivämäärien yhteenlaskut: Jos haluat tietää esimerkiksi laskun eräpäivän tai kirjaston kirjan palautuspäivän, voit tehdä päivämäärien yhteenlaskun. Anna soluun D10 jokin satunnainen päivien määrä. Kirjoitamme sitten soluun D11 =D6+D10, jolla voimme laskea erä- tai palautuspäivän tästä päivästä lukien.\n",null,"Päivämääräfunktiot"]
["HYÖDYLLISIÄ TIETOJA\nExcelissä ajanlasku alkaa 1. tammikuuta 1900. Kellonajat lasketaan lukuina osina päivästä. 1.1.2017 klo 12:30 tallennetaan siis Excelissä lukuna 42736,5208 Jos näet kellonajan tai päivämäärä tällaisena lukuna, paina Ctrl+1, valitse Luku ja valitse sitten päivämäärä- ja aikamuoto. ",null,"Päivämäärä tänään:",null,null,{"$f":"IF(D6=TODAY(),\"Oikein!\",\"\")","v":""}]
["TÄRKEÄ YKSITYISKOHTA\nJos haluat, että Excel ei näytä negatiivista lukua, jos et ole vielä antanut syntymäpäivääsi, voit käyttää seuraavaa JOS-funktiota: =JOS(D7=\"\";\"\";D7-D6). Käytännössä tämä tarkoittaa seuraavaa: JOS D7 on yhtä suuri kuin tyhjä, älä näytä mitään, muussa tapauksessa näytä D7 miinus D6.\n",null,"Oma syntymäpäivä:"]
["Kellonaikafunktiot",null,"Päivien määrä syntymäpäivääsi:",{"$f":"D7-D6","v":0}]
["Excel voi antaa sinulle nykyisen kellonajan tietokoneesi alueasetusten mukaisesti. Voit myös suorittaa kellonajoille yhteen- ja vähennyslaskuja. Voit esimerkiksi seurata sitä, kuinka monta tuntia työntekijä työskentelee viikoittain ja laskea hänen palkkansa sekä ylityökorvauksensa.\n"]
["Kirjoita soluun D28 =NYT(). Excel palauttaa nykyisen kellonajan, joka päivittyy aina, kun funktio lasketaan uudelleen. Jos haluat vaihtaa aikamuotoa, paina Ctrl+1, valitse Luku > Aika ja valitse haluamasi aikamuoto.\n",null,"Maksuaikaa jäljellä päivinä:"]
["Kahden kellonajan välisen ajan laskeminen: Olemme kirjoittaneet soluun D36 kaavan =((D35-D32)-(D34-D33))*24, joka laskee työntekijän työajan aloitus- ja päättymisajan perusteella ja vähentää työajasta lounastauot. *24 kaavan lopussa muuntaa päivän lukumuotoon Excelille. Sinun täytyy kuitenkin muotoilla solu luvuksi. Voit tehdä tämän valitsemalla Aloitus > Muotoile > Solut (Ctrl+1) > Luku > Luku > Desimaalit: 2.\n\n",null,"Laskun eräpäivä:",{"$f":"D6+D10","v":"00:00:00"}]
["Jos tämä kaava osaisia puhua, se sanoisi seuraavaa: Ota töistä lähtemisaika ja vähennä siitä töihin saapumisaika, vähennä sitten lounastauolle lähtemisaika lounaalta palaamisajasta ja kerro sitten 24:llä, jotta Excel muuntaa tuloksen tunneiksi. Toisin sanoen kaava kuuluu seuraavasti: =((Töiden päättymisaika-Töiden päättymisaika)-(Lounaalta paluun aika-Lounaalle lähdön aika))*24."]
["Edellinen"]
["Seuraava"]
["Lisää tietoja verkossa"]
["Kaikki TÄMÄ.PÄIVÄ-funktiosta"]
["Kaikki NYT-funktiosta"]
["Kaikki PÄIVÄYS-funktiosta"]
["Maksuton Excel-koulutus verkossa"]
{"$rows_empty":7}
[null,null,"Kellonaikafunktiot"]
[null,null,"Nykyinen aika:"]
[]
[]
[null,null,"Päivittäiset työtunnit"]
[null,null,"Töiden alkamisaika:","08:00:00"]
[null,null,"Lounaalle lähdön aika:","12:00:00"]
[null,null,"Lounaalta paluun aika:","13:00:00"]
[null,null,"Töiden päättymisaika:","17:00:00"]
[null,null,"Tunteja yhteensä:",{"$f":"((D35-D32)-(D34-D33))*24","v":8.000000000000002}]
{"$rows_empty":8}
[null,null,"Kiinteä päivämäärä ja aika"]
[null,null,"Päivämäärä:","2017-09-27"]
[null,null,"Aika:","08:52:00"]

{"sheet":"Tekstin ja lukujen yhdistäminen","index":6,"n_rows":37,"n_cols":6,"rows_kept":37,"merged":[[26,2,26,3],[30,2,30,3],[34,2,34,3]]}
["Eri solujen tekstin yhdistäminen"]
["Törmäät varmasti Excelissä usein tilanteisiin, joissa haluat liittää eri solujen tekstiä. Tämä on hyvin yleinen tilanne, jossa sinulla on etu- ja sukunimiä ja haluat yhdistää ne etu- ja sukunimen yhdistelmäksi tai koko nimiksi. Onneksi tämä onnistuu Excelissä et-merkillä (&), jonka voit lisätä painamalla Vaihto+7.\n",null,"Etunimi","Sukunimi","Sukunimi, Etunimi","Koko nimi"]
["Yhdistä etu- ja sukunimet kirjoittamalla soluun E3 =D3&C3. \n",null,"Liisi","Seppä",{"$f":"D3&\", \"&C3","v":"Seppä, Liisi"},{"$f":"C3&\" \"&D3","v":"Liisi Seppä"}]
["SeppäLiisi ei kuitenkaan näytä kovinkaan hyvältä. Siihen täytyy lisätä pilkku ja välilyönti. Tämä on mahdollista, kun luomme uuden tekstimerkkijonon lainausmerkkien avulla. Kirjoita nyt =D3&\", \"&C3. &\", \"& -osa lisää pilkun ja välilyönnin solujen tekstiin.\n",null,"Harri","Pohjonen"]
["Jos haluat luoda koko nimen, sinun täytyy yhdistää etu- ja sukunimi ja lisätä niiden välillä välilyönti ilman pilkkua. Kirjoita soluun F3 =C3&\" \"&D3.\n",null,"Manu","Kotamäki"]
["Saat lisätietoja alla",null,"Maria","Junttila"]
["Seuraava",null,"Simo","Torppala"]
["Tekstin ja lukujen käyttäminen yhdessä",null,"Lassi","Nissilä"]
["Nyt yhdistämme &-merkin avulla lukuja ja tekstiä, ei pelkästään tekstiä.\n\nKatso soluja C28:D29. Näet, että päivämäärät ja kellonajat ovat eri soluissa. Voit yhdistää ne &-merkillä, kuten soluissa C32:C33. Ne eivät kuitenkaan näytä hyvältä, vai mitä? Excel ei valitettavasti tiedä, miten haluat muotoilla luvut, joten ne näytetään perusmuodossaan (joka on tässä tapauksessa Sarjat). Meidän täytyy kertoa Excelille, miten kaavan lukuosio muotoillaan, jotta se näyttään luvut tuloksena saatavassa tekstimerkkijonossa haluamallamme tavalla. Voit tehdä tämän TEKSTI-funktiolla ja muotoilukoodilla.",null,"Roope","Suomu"]
["Kirjoita soluun C36 =C28&\" \"&TEKSTI(D28;\"P\\.K\\.VVVV\"). P\\.K\\.VVVV on Yhdysvalloissa käytetty päivämäärämuotoilu (esimerkiksi 25.09.2017).\n",null,"Elsa","Mäkinen"]
["Kirjoita soluun C37 =C29&\" \"&TEKSTI(D29;\"T:MM\"). T:MM on Yhdysvalloissa käytetty ajan esitysmuoto (esimerkiksi 13:30).\n\n"]
["TIESITKÖ TÄMÄN?\nKaavojen, etenkin isojen kaavojen, lukeminen voi olla joskus vaikeaa, mutta voit erotella kaavojen osat välilyönneillä seuraavaan tapaan:\n\n=C28 & \" \" & TEKSTI(D28,\"P\\.K\\.VVVV\")"]
["KANNATTAA KOKEILLA\nJos et tiedä, mitä muotoilukoodia haluat käyttää, paina Ctrl+1 ja valitse Luku. Näin voit muotoilla minkä tahansa solun millä tahansa haluamallasi tavalla. Valitse sitten Oma-luokka. Voit kopioida näytetyn muotoilukoodin takaisin kaavaasi."]
["Lisää tietoja verkossa"]
["Kaikki TEKSTI-funktiosta"]
["Tekstin ja lukujen yhdistäminen"]
["Maksuton Excel-koulutus verkossa"]
{"$rows_empty":9}
[null,null,"Tekstin ja lukujen käyttäminen"]
[null,null,"Päivämäärä tänään:",{"$f":"TODAY()","v":"2019-10-10"}]
[null,null,"Nykyinen aika:",{"$f":"NOW()","v":43748.47492777778}]
[]
[null,null,"Tekstin ja lukujen yhdistäminen"]
[null,null,{"$f":"C28&\" \"&D28","v":"Päivämäärä tänään: 43748"}]
[null,null,{"$f":"C29&\" \"&D29","v":"Nykyinen aika: 43748,4749277778"}]
[]
[null,null,"Tekstin ja lukujen muotoilu"]
[null,null,{"$f":"C28 &\" \"& TEXT(D28,\"P\\.K\\.VVVV\")","v":"Päivämäärä tänään: 10.10.2019"}]
[null,null,{"$f":"C29&\" \"&TEXT(D29,\"T:MM\")","v":"Nykyinen aika: 11:23"}]

{"sheet":"JOS-lausekkeet","index":7,"n_rows":37,"n_cols":6,"rows_kept":37,"merged":[[7,2,7,3]]}
["JOS-lausekkeet"]
["JOS-lausekkeiden avulla voit vertailla ehtoja loogisesti. JOS-lauseke toimii yleensä siten, että lauseke suorittaa tietyn toiminnon, kun ehto on tosi, ja muussa tapauksessa jonkin toisen toiminnon. Kaavat voivat palauttaa tekstiä, arvoja tai jopa lisää laskelmia."]
["Kirjoita soluun D9 =JOS(C9=\"Omena\";TOSI;EPÄTOSI) Oikea vastaus on TOSI. \n"]
["Kopioi solu D9 soluun D10. Vastauksen pitäisi olla EPÄTOSI, koska appelsiini ei ole omena.\n"]
["Kokeile toista esimerkkiä solun D12 kaavalla. Aloitit kaavalla =JOS(C12<100;\"Pienempi kuin 100\";\"Suurempi tai yhtä suuri kuin 100\"). Mitä tapahtuu, jos annat solun C12 arvoksi luvun, joka on suurempi kuin 100?\n"]
["TÄRKEÄ YKSITYISKOHTA\nTOSI ja EPÄTOSI eroavat muista Excel-kaavoissa käytetyistä sanoista, sillä niitä ei tarvitse sulkea lainausmerkkeihin. Lisäksi Excel muuntaa ne automaattisesti isoiksi kirjaimiksi. Luvutkaan eivät tarvitse lainausmerkkejä. Tavallinen teksti (esimerkiksi sanat Kyllä tai Ei) täytyy kuitenkin sulkea lainausmerkkeihin seuraavasti: \n=JOS(C9=\"Omena\";\"Kyllä\";\"Ei\")"]
["Hae lisätietoja"]
["Seuraava",null,"JOS-lausekkeet"]
["JOS-lauseke yhdessä toisen funktion kanssa",null,"Omena"]
["JOS-lausekkeet voivat pakottaa myös muidenkin laskutoimitusten suorituksen, jos tietty ehto täyttyy. Tässä arvioimme solun nähdäksemme, täytyykö myyntivero periä, ja laskemme myyntiveron, jos ehdon arvo on tosi.\n",null,"Appelsiini"]
["Olemme lisänneet soluun F33 kaavan =JOS(E33=\"Kyllä\";F31*Myyntivero;0), jossa olemme määrittäneet nimetyn alueen, jonka nimi on Myyntivero ja jonka arvo on 0,0825. Kaavamme sanoo, että jos solun E33 arvo on Kyllä, solu F31 kerrotaan Myyntivero-arvolla, muussa tapauksessa arvoksi palautetaan 0.\n\nKokeile vaihtaa solun E33 Kyllä-arvo Ei-arvoksi. Näin näet, miten laskutoimitus muuttuu."]
["Seuraavaksi olemme lisänneet JOS-lausekkeen, jolla lasketaan tarvittaessa toimituskulut. Näet solussa F35 kaavan =JOS(E35=\"Kyllä\";SUMMA(D28:D29)*1,25;0). Tämä kaava määrittää, että jos solun E35 arvo on Kyllä, yllä olevan taulukon Määrä-sarake kerrotaan 1,25:llä, muussa tapauksessa palautetaan arvoksi nolla.\n",null,50,{"$f":"IF(C12<100,\"Pienempi kuin 100\",\"Suurempi tai yhtä suuri kuin 100\")","v":"Pienempi kuin 100"}]
["Vaihda seuraavaksi solun F35 kaavan arvo 1,25 arvoon ”Toimitus”. Kun aloitat kirjoittamisen, Excelin automaattisen korjaustoiminnon pitäisi löytää se puolestasi. Kun se löytää tämän, anna tämä arvo painamalla Sarkain-näppäintä. Tämä on nimetty alue, jonka olemme antaneet valitsemalla Kaavat > Määritä nimi. Jos sinun täytyy joskus muokata toimituskuluja, sinun täytyy tehdä se vain yhdessä paikassa, sillä voit käyttää Toimitus-nimeä kaikkialla työkirjassa.\n\n"]
["HYÖDYLLISIÄ TIETOJA\nKun luot kaavaa, Excel asettaa automaattisesti värilliset reunat kaikkien kaavassa viitattujen alueiden ympärille. Vastaavat alueet kaavassa ovat samanvärisiä. Näet tämän, jos valitset solun F33 ja painat F2-näppäintä muokataksesi kaavaa."]
["ASIANTUNTIJAN VINKKI\nNimettyjen alueiden avulla voit määrittää termejä ja arvoja yhdessä paikassa sekä käyttää niitä sitten koko työkirjassa. Näet kaikki tämän työkirjan nimetyt alueet valitsemalla Kaavat > Nimien hallinta. Saat lisätietoja napsauttamalla tätä.\n"]
["Edellinen"]
["Seuraava"]
["Lisää tietoja verkossa"]
["Kaikki JOS-funktiosta"]
["Kaikki JOS.JOUKKO-funktiosta"]
["Kehittyneet JOS-lausekkeet"]
["Maksuton Excel-koulutus verkossa"]
[]
[]
[]
[]
[null,null,"Kohde","Määrä","Hinta","Yhteensä"]
[null,null,"Vekotin",2,{"v":9.760711585683554,"d":"9.76 €"},{"$f":"'JOS-lausekkeet'!$E$28:$E$29*'JOS-lausekkeet'!$D$28:$D$29","v":{"v":19.521423171367108,"d":"19.52 €"}}]
[null,null,"Vimpain",3,{"v":3.4189202461080024,"d":"3.42 €"},{"$f":"'JOS-lausekkeet'!$E$28:$E$29*'JOS-lausekkeet'!$D$28:$D$29","v":{"v":10.256760738324008,"d":"10.26 €"}}]
[]
[{"$nulls":3},"Välisumma",{"$f":"SUM('JOS-lausekkeet'!$E$28:$E$29)","v":{"v":13.179631831791557,"d":"13.18 €"}},{"$f":"SUM('JOS-lausekkeet'!F28:F29)","v":{"v":29.778183909691116,"d":"29.78 €"}}]
[]
[{"$nulls":3},"Peritäänkö myyntivero?","Kyllä",{"$f":"IF(E33=\"Kyllä\",F31*Myyntivero,0)","v":{"v":2.456700172549517,"d":"2.46 €"}}]
[]
[{"$nulls":3},"Peritäänkö toimitusmaksu","Kyllä",{"$f":"IF(E35=\"Kyllä\",SUM(D28:D29)*1.25,0)","v":{"v":6.25,"d":"6.25 €"}}]
[]
[{"$nulls":3},"Yhteensä",null,{"$f":"SUM(F33,F31,F35)","v":{"v":38.48488408224063,"d":"38.48 €"}}]

{"sheet":"PHAKU","index":8,"n_rows":43,"n_cols":7,"rows_kept":43}
["PHAKU"]
["PHAKU on yksi Excelin eniten käytetyistä funktioista (ja myös yksi omista suosikeistamme). PHAKU-funktio hakee arvon vasemmalla olevasta sarakkeesta, palaa sitten oikealla olevan sarakkeen tietoihin ja etsii siitä vastineen ensin haetulle arvolle. PHAKU-funktio sanoo siis seuraavaa:\n"]
["=PHAKU(A1;B:C;2;EPÄTOSI)"]
["Mitä aluetta haluat hakea?"]
["Jos se löytyy, kuinka monen sarakkeen päästä oikealta haluat hakea arvon?"]
["Mistä haluat hakea sitä?"]
["Haluatko tarkan vai summittaisen vastineen?"]
["Kirjoita soluun D22 =PHAKU(C22;C17:D20;2;EPÄTOSI). Oikea vastaus omenoille on 50. PHAKU-funktio etsi Omenat-arvon, löysi sen, siirtyi sitten oikealla olevaan sarakkeeseen ja palautti määrän.\n\n"]
["Kokeile nyt tätä itse Liha-osiossa solussa G22. Kaavan pitäisi olla =PHAKU(F22;F17:G20;2;EPÄTOSI).\n\n"]
["KOKEILE\nKokeile valita eri kohteita avattavista luetteloista. Näet, että tulossolujen tulokset päivittyvät heti."]
["Saat lisätietoja alla"]
["Seuraava"]
["PHAKU-funktio ja #PUUTTUU"]
["Joskus törmäät varmasti tilanteeseen, jossa PHAKU-funktio ei löydä etsimäänsä, jolloin Excel palauttaa virheen (#PUUTTUU). Joskus tämä johtuu siitä, että haettavaa arvoa ei ole olemassa, mutta tämä voi johtua myös siitä, että viitatussa solussa ei ole vielä arvoa.\n"]
["Jos tiedät, että haettava arvo on olemassa, ja haluat piilottaa virheen, jos haettava solu on tyhjä, voit käyttää JOS-lauseketta. Tässä tapauksessa muokkaamme solun D43 nykyistä PHAKU-kaavaa seuraavasti:\n\n=JOS(C43=\"\";\"\";PHAKU(C43;C37:D41;2;EPÄTOSI))\n\nTämä sanoo, että jos solun C43 arvo on yhtä suuri kuin tyhjä (\"\"), mitään ei palauteta, mutta muussa tapauksessa palautetaan PHAKU-funktion tulokset. Huomaathan, että kaavan lopussa on kaksi sulkumerkkiä. Toinen sulkumerkki sulkee JOS-lausekkeen.\n"]
["Jos et ole varma, onko haettava arvo olemassa, ja haluat silti ohittaa #PUUTTUU-virheen, voit käyttää virheenkäsittelyn JOSVIRHE-funktiota solussa G43: =JOSVIRHE(PHAKU(F43;F37:G41;2;EPÄTOSI),\"\"). JOSVIRHE-funktio määrittää sen, että jos PHAKU-funktio palauttaa kelvollisen tuloksen, se näytetään, mutta muussa tapauksessa ei näytetä mitään (\"\"). Tässä ei näytetä mitään (\"\"), mutta voit käyttää arvoina myös numeroita (0,1, 2 jne.) tai tekstiä (esimerkiksi \"Kaava ei ole oikein\").\n",null,"Hedelmät","Määrä",null,"Liha","Määrä"]
["TÄRKEÄ YKSITYISKOHTA\nJOSVIRHE-funktio on niin sanottu yleinen virheenkäsittelyfunktio, mikä tarkoittaa sitä, että se ohittaa minkä tahansa kaavan palauttaman virheen. Tämä saattaa aiheuttaa ongelmia, jos Excel antaa sinulle ilmoituksen kaavan todellisesta virheestä, joka pitäisi korjata.\n\nYleensä virheenkäsittelyfunktioita ei kannata lisätä kaavoihin, ennen kuin olet ehdottoman varma kaavan toimivuudesta.",null,"Omenat",50,null,"Naudanliha",50]
["Edellinen",null,"Appelsiinit",20,null,"Kana",30]
["Seuraava",null,"Banaanit",60,null,"Sianliha",10]
["Lisää tietoja verkossa",null,"Sitruunat",40,null,"Kala",50]
["Kaikki PHAKU-funktiosta"]
["Kaikki INDEKSI- ja VASTINE-funktioista",null,"Omenat",null,null,"Sianliha"]
["Kaikki JOSVIRHE-funktiosta"]
["Laskentataulukon tietojen analysointi Pivot-taulukoilla"]
["Maksuton Excel-koulutus verkossa"]
{"$rows_empty":9}
[null,null,"Jos solun D42 SUMMA-funktio voisi puhua, se sanoisi: laske yhteen arvot soluista D38, D39, D40 ja D41."]
[null,null,"Kohde","Määrä",null,"Kohde","Määrä"]
[null,null,"Leivät",50,null,"Leivät",50]
[null,null,"Donitsit",100,null,"Donitsit",100]
[null,null,"Pikkuleivät",40,null,"Pikkuleivät",40]
[null,null,"Kakut",50,null,"Kakut",50]
[null,null,"Piirakat",20,null,"Piirakat",20]
[]
[{"$nulls":3},{"$f":"VLOOKUP(C43,C37:D41,2,FALSE)","v":{"$error":"#N/A"}},null,"Leivonnaiset",{"$f":"IFERROR(VLOOKUP(F43,F37:G41,2,FALSE),\"\")","v":""}]

{"sheet":"Ehdolliset funktiot","index":9,"n_rows":123,"n_cols":34,"rows_kept":123}
["Ehdolliset funktiot: SUMMA.JOS"]
["Ehdollisten funktioiden avulla voit laskea summan, keskimäärän, määrän ja alueen suurimman tai pienimmän arvon määrittämäsi ehdon tai määrittämiesi ehtojen perusteella. Voit laskea esimerkiksi sen, kuinka monta omenaa hedelmien luettelossa on tai kuinka moni appelsiini on Florida-appelsiini.",null,"Hedelmät","Määrä",null,"Hedelmät","Tyyppi","Määrä",{"$nulls":17},"Hedelmät",null,"Omenat",null,"Appelsiinit",null,"Banaanit",null,"Sitruunat"]
["SUMMA.JOS-funktiolla voit laskea yhden alueen summan sellaisen ehdon perusteella, joka haetaan toiselta alueelta. Näin voit laskea esimerkiksi omenoiden määrä. Valitse solu D17 ja kirjoita siihen =SUMMA.JOS(C3:C14;C17;D3:D14). SUMMA.JOS muotoillaan seuraavasti:",null,"Omenat",50,null,"Omenat","Fuji",50,{"$nulls":17},"Omenat",null,"Fuji",null,"Florida",null,"Cavendish",null,"Rough"]
["=SUMMA.JOS(C3:C14;C17;D3:D14)",null,"Appelsiinit",20,null,"Appelsiinit","Florida",20,{"$nulls":17},"Appelsiinit",null,"Honeycrisp",null,"Navel",null,"Lady Finger",null,"Eureka"]
["Mitä aluetta haluat tarkastella?",null,"Banaanit",60,null,"Banaanit","Cavendish",60,{"$nulls":17},"Banaanit"]
["Mitä arvoa (teksti tai luku) haluat etsiä?",null,"Sitruunat",40,null,"Sitruunat","Rough",40,{"$nulls":17},"Sitruunat"]
["Millä alueella haluat laskea summan jokaiselle löydetylle osumalle?",null,"Omenat",50,null,"Omenat","Honeycrisp",50]
["SUMMA.JOS.JOUKKO on sama kuin SUMMA.JOS, mutta siinä voit käyttää useita ehtoja. Tässä esimerkissä voit siis etsiä sekä tiettyä hedelmää ja tyyppiä pelkän hedelmän sijasta. Valitse solu H17 ja kirjoita =SUMMA.JOS.JOUKKO(H3:H14;F3:F14;F17;G3:G14;G17). SUMMA.JOS.JOUKKO muotoillaan seuraavasti:\n",null,"Appelsiinit",20,null,"Appelsiinit","Navel",20]
["=SUMMA.JOS.JOUKKO(H3:H14;F3:F14;F17;G3:G14;G17)",null,"Banaanit",60,null,"Banaanit","Lady Finger",60]
["Minkä alueen summan haluat laskea?",null,"Sitruunat",40,null,"Sitruunat","Eureka",40]
["Tämä on ensimmäinen alue, jolta etsitään vastaavuuksia",null,"Omenat",50,null,"Omenat","Honeycrisp",50]
["Tämä on ensimmäisen osuman ehto",null,"Appelsiinit",20,null,"Appelsiinit","Navel",20]
["Tämä on toinen alue, jolta etsitään vastaavuuksia",null,"Banaanit",60,null,"Banaanit","Cavendish",60]
["Tämä on toisen osuman ehto",null,"Sitruunat",40,null,"Sitruunat","Eureka",40]
["ASIANTUNTIJAN VINKKI\nJokaisessa Hedelmä- ja Tyyppi-solussa on avattava luettelo, jossa voit valita erilaisia hedelmiä. Kokeile sitä: näet, miten kaavat päivittyvät automaattisesti."]
["Saat lisätietoja alla",null,"Hedelmät","SUMMA.JOS",null,"Hedelmät","Tyyppi","SUMMA.JOS.JOUKKO"]
["Seuraava vaihe",null,"Omenat",null,null,"Appelsiinit","Florida"]
["Ehdolliset funktiot: LASKE.JOS"]
["LASKE.JOS- ja LASKE.JOS.JOUKKO-funktioiden avulla voit laskea alueen arvojen määrän määrittämiesi ehtojen perusteella. Ne eroavat hieman muista JOS- ja JOS.JOUKKO-funktioista, sillä niillä on vain ehtoalue ja ehdot. Ne eivät laske yhtä aluetta ja laske sitten tulosta toisen alueen avulla."]
["Valitse solu D64 ja kirjoita siihen =LASKE.JOS(C50:C61;C64). LASKE.JOS muotoillaan seuraavasti:"]
["=LASKE.JOS(C50:C61;C64)"]
["Mitä aluetta haluat tarkastella?"]
["Mitä arvoa (teksti tai luku) haluat etsiä?"]
["LASKE.JOS.JOUKKO on sama kuin LASKE.JOS, mutta siinä voit käyttää useita ehtoja. Tässä esimerkissä voit siis etsiä sekä tiettyä hedelmää ja tyyppiä pelkän hedelmän sijasta. Valitse solu H64 ja kirjoita siihen =LASKE.JOS.JOUKKO(F50:F61;F64;G50:G61;G64). LASKE.JOS.JOUKKO muotoillaan seuraavasti:\n"]
["=LASKE.JOS.JOUKKO(F50:F61;F64;G50:G61;G64)"]
["Tämä on ensimmäinen alue, joka lasketaan"]
["Tämä on ensimmäisen osuman ehto"]
["Tämä on toinen alue, joka lasketaan"]
["Tämä on toisen osuman ehto"]
["Saat lisätietoja alla"]
["Seuraava"]
["Lisää ehdollisia funktioita"]
["Olet jo tutustunut SUMMA.JOS-, SUMMA.JOS-JOUKKO-, LASKE.JOS- JA LASKE.JOS-JOUKKO-funktioihin. Seuraavaksi voit kokeilla omatoimisesti muitakin funktioita, esimerkiksi KESKIARVO.JOS.JOUKKO-, MAKS.JOS.JOUKKO- ja MIN.JOS.JOUKKO-funktioita. Niillä kaikilla on samanlainen rakenne, joten kun olet kirjoittanut yhden kaavan, voit vain korvata funktion nimen haluamallasi toisen funktion nimellä. Olemme kirjoittaneet kaikki tarvitsemasi funktiot soluun 106, joten voit kopioida ja liittää niitä. Tietysti voit harjoitella funktioiden kirjoittamista kokonaan itse.\n\nSUMMA.JOS \t=SUMMA.JOS(C92:C103;C106;E92:E103) \nSUMMA.JOS.JOUKKO \t=SUMMA.JOS.JOUKKO(E92:E103;C92:C103;C106;D92:D103;D106) \nKESKIARVO.JOS \t=KESKIARVO.JOS(C92:C103;C106;E92:E103) \nKESKIARVO.JOS.JOUKKO\t=KESKIARVO.JOS.JOUKKO(E92: E103;C92:C103;C106;D92:D103;D106)\nLASKE.JOS \t=LASKE.JOS(C92:C103;C106)\nLASKE.JOS.JOUKKO \t=LASKE.JOS.JOUKKO(C92:C103;C106;D92:D103;D106) \nMAKS.JOS.JOUKKO \t=MAKS.JOS.JOUKKO(E92: E103;C92:C103;C106;D92:D103;D106)\nMIN.JOS.JOUKKO \t=MIN.JOS.JOUKKO(E92:E103;C92:C103;C106;D92:D103;D106)\n"]
["Saat lisätietoja alla"]
["Seuraava"]
["SUMMA.JOS, jossa on arvoargumentti"]
["Tässä on esimerkki SUMMA.JOS-funktiosta, joka käyttää suurempi kuin -argumenttia (>), jolla se etsii kaikki annettua arvoa suuremmat arvot:"]
[{"$f":"SUMIF(D118:D122,\">=50\")","v":200}]
["Laske yhteen arvoja tämän ehdon mukaan:"]
["...Etsi näistä soluista...\n "]
["...ja jos arvo on suurempi kuin 50, laske se summaan mukaan.\n "]
["HUOMAUTUS: Jos päädyt luomaan paljon ehdollisia kaavoja, kannattaa ehkä miettiä, olisiko Pivot-taulukko parempi ratkaisu. Lue lisätietoja tästä Pivot-taulukoiden artikkelista."]
["Lisää tietoja verkossa"]
["Kaikki SUMMA.JOS-funktiosta"]
["Kaikki SUMMA.JOS.JOUKKO-funktiosta"]
["Kaikki LASKE.JOS-funktiosta"]
["Kaikki LASKE.JOS.JOUKKO-funktiosta"]
["Kaikki KESKIARVO.JOS-funktiosta"]
["Kaikki KESKIARVO.JOS.JOUKKO-funktiosta",null,"Hedelmät","Määrä",null,"Hedelmät","Tyyppi","Määrä"]
["Kaikki MIN.JOS.JOUKKO-funktiosta",null,"Omenat",50,null,"Omenat","Fuji",50]
["Kaikki MAKS.JOS.JOUKKO-funktiosta",null,"Appelsiinit",20,null,"Appelsiinit","Florida",20]
["Avattavan luettelon luominen",null,"Banaanit",60,null,"Banaanit","Cavendish",60]
["Maksuton Excel-koulutus verkossa",null,"Sitruunat",40,null,"Sitruunat","Rough",40]
["Takaisin alkuun",null,"Omenat",50,null,"Omenat","Honeycrisp",50]
["Seuraava",null,"Appelsiinit",20,null,"Appelsiinit","Navel",20]
[null,null,"Banaanit",60,null,"Banaanit","Lady Finger",60]
[null,null,"Sitruunat",40,null,"Sitruunat","Eureka",40]
[null,null,"Omenat",50,null,"Omenat","Honeycrisp",50]
[null,null,"Appelsiinit",20,null,"Appelsiinit","Navel",20]
[null,null,"Banaanit",60,null,"Banaanit","Cavendish",60]
[null,null,"Sitruunat",40,null,"Sitruunat","Eureka",40]
[]
[null,null,"Hedelmät","LASKE.JOS",null,"Hedelmät","Tyyppi","LASKE.JOS.JOUKKO"]
[null,null,"Omenat",{"$f":"COUNTIF(C50:C61,C64)","v":3},null,"Appelsiinit","Florida",{"$f":"COUNTIFS(F50:F61,F64,G50:G61,G64)","v":1}]
{"$rows_empty":26}
[null,null,"Hedelmät","Tyyppi","Määrä"]
[null,null,"Omenat","Fuji",50]
[null,null,"Appelsiinit","Florida",20]
[null,null,"Banaanit","Cavendish",60]
[null,null,"Sitruunat","Rough",40]
[null,null,"Omenat","Honeycrisp",50]
[null,null,"Appelsiinit","Navel",20]
[null,null,"Banaanit","Lady Finger",60]
[null,null,"Sitruunat","Eureka",40]
[null,null,"Omenat","Honeycrisp",50]
[null,null,"Appelsiinit","Navel",20]
[null,null,"Banaanit","Cavendish",60]
[null,null,"Sitruunat","Eureka",40]
[]
[null,null,"Hedelmät","Tyyppi","Kokeile"]
[null,null,"Sitruunat","Eureka",{"$f":"AVERAGEIFS(E92:E103,C92:C103,C106,D92:D103,D106)","v":40}]
{"$rows_empty":10}
[null,null,"Kohde","Määrä"]
[null,null,"Leivät",50]
[null,null,"Donitsit",100]
[null,null,"Pikkuleivät",40]
[null,null,"Kakut",50]
[null,null,"Piirakat",20]
[{"$nulls":3},{"$f":"SUMIF(D118:D122,\">=50\")","v":200}]

{"sheet":"Ohjattu funktiotoiminto","index":10,"n_rows":14,"n_cols":4,"rows_kept":14}
["Hyödynnä ohjattua Funktio-toimintoa"]
["Jos tiedät haluamasi funktion nimen, mutta et ole varma sen rakenteesta, voit hyödyntää ohjattua Funktio-toimintoa, joka opastaa sinua.\n"]
["Valitse solu D10 ja sitten Kaavat > Lisää funktio > kirjoita PHAKU Etsi funktio -kenttään ja napsauta sitten Siirry-painiketta. Kun näet PHAKU-funktion korostettuna, valitse alhaalta OK. Kun valitset funktion luettelosta, Excel näyttää sen syntaksin.\n"]
["Tämän jälkeen voit antaa funktion argumentit niiden tekstiruutuihin. Kun annat kunkin argumentin, Excel laskee sen ja näyttää sen tuloksen. Lisäksi Excel näyttää lopputuloksen alhaalla. Kun annat kunkin argumentin arvoa, näet kunkin argumentin vaatimukset lomakkeen alareunassa. Kun olet valmis, paina OK. Excel lisää sitten kaavan puolestasi.\n\n\n",null,"Hedelmät","Määrä"]
["TIESITKÖ TÄMÄN?\nSinun pitäisi saada kaavaksi =PHAKU(C10;C5:D8;2;EPÄTOSI)",null,"Omenat",50]
["HYÖDYLLISIÄ TIETOJA\nVoit kirjoittaa solu- ja alueviittaukset tai valita ne hiirellä.",null,"Appelsiinit",20]
["HYÖDYLLISIÄ TIETOJA\nKun määrität kutakin argumenttia, näet argumentin kuvauksen lomakkeen alareunassa kaavan tuloksen yläpuolella.\n",null,"Banaanit",60]
["Edellinen",null,"Sitruunat",40]
["Seuraava"]
["Lisää tietoja verkossa",null,"Omenat",{"$f":"VLOOKUP(C10,C5:D8,2,FALSE)","v":50}]
["Excelin kaavojen yleiskatsaus"]
["Excelin funktiot (luokittain)"]
["Excelin funktiot (aakkosjärjestyksessä)"]
["Maksuton Excel-koulutus verkossa"]

{"sheet":"Kaavojen virheet","index":11,"n_rows":36,"n_cols":4,"rows_kept":36}
["Kaavojen virheiden korjaaminen"]
["Jossain vaiheessa törmäät varmasti kaavaan, jossa on virhe, jolloin Excel näyttää virheilmoituksen #VirheenNimi. Virheilmoituksista voi olla hyötyä, sillä niistä voit saada tietoa siitä, kun jokin ei toimi oikein. Virheiden korjaaminen voi kuitenkin olla vaikeaa. Onneksi tarjolla on useita vaihtoehtoja virheen alkuperän määrittämiseksi ja virheen korjaamiseksi.\n"]
["Virheiden korjaaminen: Valitse Kaavat > Virheentarkistus. Tämä avaa näyttöön valintaikkunan, josta näet virheesi yleisen syyn. Solun D9 #PUUTTUU!-virhe johtuu siitä, että Omena-arvoa ei löydy. Voit korjata tämän käyttämällä arvoa, joka löytyy taulukosta, ohittaa virheen JOSVIRHE-funktiolla tai ohittaa virheen kokonaan, sillä tiedät, että virhe katoaa, kun käytät arvoa, joka on olemassa taulukossa.\n",null,"Hedelmät","Määrä"]
["Jos valitset Tämän virheen ohje, pääset virheilmoitusta käsittelevään ohjeartikkeliin. Jos valitset Näytä laskennan vaiheet, näyttöön avautuu Kaavan laskeminen -valintaikkuna.\n",null,"Omenat",50]
["Aina kun napsautat Laske, Excel laskee kaavan yhden kohdan. Excel ei välttämättä kerro, miksi virhe tapahtuu, mutta se näyttää, missä se tapahtuu. Tämän jälkeen voit lukea ohjeartikkelista lisätietoja siitä, miksi kaava on virheellinen.\n",null,"Appelsiinit",20]
["KOKEILE\nMikä tässä on vialla? Vinkki: yritämme laskea kaikkien kohteiden SUMMAN.",null,"Banaanit",60]
["HYÖDYLLISIÄ TIETOJA\nKun napsautat Asetukset, voit määrittää asetukset sille, milloin Excelin virheet näytetään tai ohitetaan.\n",null,"Sitruunat",40]
["Edellinen"]
["Seuraava",null,"Omena",{"$f":"VLOOKUP(C9,C3:D7,2,FALSE)","v":{"$error":"#N/A"}}]
["Lisää tietoja verkossa"]
["Kaavojen virheiden tunnistaminen"]
["Kaavojen virheiden välttäminen"]
["Sisäkkäisen kaavan laskeminen yksi vaihe kerrallaan"]
["Maksuton Excel-koulutus verkossa"]
{"$rows_empty":15}
[null,null,"Hedelmät","Määrä"]
[null,null,"Omenat",50]
[null,null,"Appelsiinit",20]
[null,null,"Banaanit",60]
[null,null,"Sitruunat",40]
[]
[null,null,"Yhteensä",{"$f":"sume(D31:D34)","v":{"$error":"#NAME?"}}]

{"sheet":"Lisätiedot","index":12,"n_rows":5,"n_cols":1,"rows_kept":5}
["Haluatko tietää lisää Excelistä?"]
["Paina Alt + Q ja kirjoita mitä haluat tietää."]
["Jatka samaan tapaan. Excelistä on vielä lisää opittavaa:"]
["Yhteisö: Esitä kysymyksiä ja ota yhteyttä muihin Excel-käyttäjiin.\n"]
["Mitä muuta uutta on tarjolla?\nOffice 365 -tilaajat saavat jatkuvia päivityksiä ja uusia toimintoja.\n\n"]